Workbook

Sheet Instructions
B3: Quadrant 1 | L3: Quadrant 2 | N3: MSU Grain Marketing Evaluation Tool
N9: Prepared by: Jon LaPorte, Farm Business Management Educator
N10: Suite 116, 120 N. Broadway, Cassopolis, MI 49031
N11: Phone: (269) 445-4356 Email: laportej@msu.edu
N14: The Grain Marketing Evaluation Tool is designed to help illustration considerations of pricing tool options in comparison to market trends based on futures and basis price movements.
N17: Concepts based on: | O17: MSU Extension Bulletin E-3416: Introduction to Grain Marketing
N19: "What If" Scenario-Use: To evaluate price scenarios in "what if" situations for your farm, your future price expectations are an important factor. Identifying those expectations may be challenging, as the future is unknown. However, your price expectations are important to evaluate how different pricing tools will perform under different price scenarios.
B21: Quadrant 4 | L21: Quadrant 3
N23: Macro-Enabled "Reset All" Feature: Each tab of the evaluation tool is equipped with a "reset all" button that works using macros. Clicking the button will clear example data and allow for input of current information. This is a convenience option as example data can also be erased or overwritten manually.
N27: Start Here (Tab): Baseline information can be entered to help identify which Quadrant (tab) to start from. This is not a required section, but design to aid first time marketers. Note: Each evaluation tab has a "Reset to Start Here Values" button to reset or start over with baseline assumptions entered in this tab.
N31: Navigating Evaluation Tabs:
N32: After "Start Here," the evaluation tool is divided into four tabs based on market trends in futures and base prices:
N33: Quadrant 1 - Basis Weak, Futures Up: | O33: Basis is widening or getting weaker while Futures prices are increasing.
N34: Quadrant 2 - Basis Strong, Futures Up: | O34: Basis is narrowing or getting stronger while Futures prices are increasing.
N35: Quadrant 3 - Basis Strong, Futures Down: | O35: Basis is narrowing or getting stronger while Futures prices are decreasing.
N36: Quadrant 4 - Basis Weak, Futures Down: | O36: Basis is widening or getting weaker while Futures prices are decreasing.
N38: Information needed to use each tab of evaluation tool:
N39: Current (Baseline) Information: | O39: Can be input on "Start Here" tab or manually on each evaluation tab
N40: Crop: | O40: Identify the specific crop being evaluated
N41: Date of Plan: | O41: Enter date of market evaluation
N42: Store from: | O42: Beginning date of storage for any stored grain
N43: Store until: | O43: Date of delivery for any stored grain
N44: Storage cost per month (on farm): | O44: Your farm's cost per bushel of storing and maintaing grain
N45: Storage cost per month (commercial): | O45: Local commercial storage rate per bushel
N46: Annual Interest Rate: | O46: Opportunity cost of either your farm's operating loan interest rate, if loan balance could be repaid with grain sale, or interest rate of potential alternative investment opportunity with proceeds from grain sales (used for both storage and initial margin for futures contracts)
N47: Harvest (or Nearby) Futures: | O47: Futures price based on date of storage (or closest contract date)
N48: Harvest (or Nearby) Cash Price: | O48: Cash price based on date of storage (or closest contract date)
N50: Future (Baseline) Outlook: | O50: Can be input on "Start Here" tab or manually on each evaluation tab
N51: Forward Contract Price: | O51: Forward contract priced offered by local elevator at anticipated delivery month
N52: Futures Price (at delivery): | O52: Futures prices based on anticipated delivery month
N53: Basis (at delivery): | O53: Difference between Futures and cash prices at anticipated delivery month
N54: Expected Cash Price (at delivery): | O54: Cash price based on anticipated delivery month
N56: Minimum Price: | O56: Input manually depending on evaluation tab selected
N57: Contract Call (Strike) Price: | O57: Set by local grain elevator or by you (depending on elevator preference)
N58: Call Premium: | O58: Set by local grain elevator for use of a minimum price contract
N59: Fees/Brokerage Cost (Minimum Price): | O59: Set by local grain elevator for use of a minimum price contract
N61: Minimum Price w/ Hedge-To-Arrive: | O61: Input manually depending on evaluation tab selected
N62: Minimum Price: | O62: Set by local grain elevator (often following Call Options)
N63: Maximum Price: | O63: Set by local grain elevator (often following Put Options)
N65: Options & Fees: | O65: Input manually depending on evaluation tab selected
N66: Futures Strike Price: | O66: Set by you when working with futures broker to establish contract
N67: Call Option Premium: | O67: Set by futures exchange
N68: Initial Margin on Futures Contract: | O68: Set by futures exchange
N69: Fees/Brokerage Cost (Futures Cont.): | O69: Set by broker of futures contract
N70: Fees/Brokerage Cost (Options): | O70: Set by broker of futures contract

Sheet Start Here
C2: Marketing Plan Data Entry
C3: Crop | D3: Corn | G3: Which Quadrant (Tab) Should I Look At? | L3: Quadrant 1 | W3: Quadrant 2
A4: Days in Marketing Plan | C4: Date of Plan | D4: 12/01/2023
A5: =IFERROR(D8-D7,0) -> 182 | B5: Days | G5: Basis | H5: (at delivery compared to harvest/nearby) | I5: = | J5: =IF(D21<D16,"Weak",Strong) -> Weak
A6: =A5/(365/12) -> 5.983561644 | B6: Months | C6: Plan Information:
C7: Store from: | D7: 2023-12-01
C8: Store until: | D8: 2024-05-31 | G8: Futures | H8: (at delivery compared to harvest/nearby) | I8: = | J8: =IF(D14>D20,"Down","Up") -> Up
C9: Storage cost per month (on farm) | D9: 0.01
C10: Storage cost per month (commercial) | D10: 0.04
C11: Annual Interest Rate | D11: 0.07 | G11: Answer: | H11: =CONCATENATE(G5,J5,G8,J8) -> BasisWeakFuturesUp
D12: Note: Loan or investment opportunity
C13: Current Information:
C14: Harvest (or Nearby) Futures | D14: 5.2 | E14: =D7 -> 2023-12-01
C15: Harvest (or Nearby) Cash Price | D15: 5.3
C16: Harvest (or Nearby) Basis | D16: =D15-D14 -> 0.1
C18: Future Outlook:
C19: Forward Contract Price | D19: 5.3 | E19: =E20 -> 2024-05-31
C20: Futures Price (at delivery) | D20: 6 | E20: =D8 -> 2024-05-31
C21: Basis (at delivery) | D21: =D22-D20 -> -0.1 | E21: (=D22-D20) | L21: Quadrant 4 | W21: Quadrant 3
C22: Expected Cash Price (at delivery) | D22: 5.9
C23: (adjusts with Futures & basis prices or enter your own value)
C26: Instructions: Baseline information can be entered to help identify which Quadrant (tab) to start from. This is not a required section, but design to aid first time marketers.

Sheet Basis Weak Futures Up
C2: Marketing Plan Data Entry | G2: Pricing Tool Options | I2: 1. Basis Contract | L2: 4. Forward Contract, Buy Call
C3: Crop | D3: ='Start Here'!D3 -> Corn | G3: 1. Basis Contract | I3: Futures Price (at delivery) | J3: =D20 -> 6 | L3: Forward Contract Price | M3: =D19 -> 5.3
A4: Days in Marketing Plan | C4: Date of Plan | D4: ='Start Here'!D4 -> 12/01/2023 | G4: 2. Sell Cash, Buy Futures | I4: Harvest (or Nearby) Basis | J4: =D16 -> -0.2 | L4: Less Storage | M4: =ROUND(($D$11*$A$6/12*$D$15)+($D$9*$A$6),3)*-1 -> -0.234
A5: =IFERROR(D8-D7,0) -> 182 | B5: Days | G5: 3. Sell, Cash, Buy Call | I5: Less Storage | J5: =ROUND(($D$11*$A$6/12*$D$15)+($D$9*$A$6),3)*-1 -> -0.234
A6: =A5/(365/12) -> 5.983561644 | B6: Months | C6: Plan Information: | G6: 4. Forward Contract, Buy Call | L6: Buy Call Option:
C7: Store from: | D7: ='Start Here'!D7 -> 2023-12-01 | G7: 5. Minimum Price Contract | L7: Call Option Value (Fut. Del - Fut. Strike) | M7: =MAX(0,D20-D31) -> 0.8
C8: Store until: | D8: ='Start Here'!D8 -> 2024-05-31 | L8: Call Option Premium | M8: =D32*-1 -> -0.6
C9: Storage cost per month (on farm) | D9: ='Start Here'!D9 -> 0.01 | L9: Less Fees/Brokerage Cost | M9: =D35*-1 -> -0.03
C10: Storage cost per month (commercial) | D10: ='Start Here'!D10 -> 0.04
C11: Annual Interest Rate | D11: ='Start Here'!D11 -> 0.07 | I11: Net Cash | J11: =J3+J4+J5 -> 5.566 | L11: Net Cash | M11: =M3+M4+M7+M8+M9 -> 5.236
D12: Note: Loan or investment opportunity
C13: Current Information: | I13: 2. Sell Cash, Buy Futures | L13: 5. Minimum Price Contract
C14: Harvest (or Nearby) Futures | D14: ='Start Here'!D14 -> 5.2 | E14: =D7 -> 2023-12-01 | I14: Harvest (or Nearby) Cash Price | J14: =D15 -> 5 | L14: Forward Contract Price | M14: =D19 -> 5.3
C15: Harvest (or Nearby) Cash Price | D15: 5 | I15: Harvest (or Nearby) Futures | J15: =D14*-1 -> -5.2 | L15: Less Storage | M15: =ROUND(($D$11*$A$6/12*$D$15)+($D$9*$A$6),3)*-1 -> -0.234
C16: Harvest (or Nearby) Basis | D16: =D15-D14 -> -0.2 | I16: Futures Price (at delivery) | J16: =D20 -> 6 | L16: Call Premium | M16: =D27*-1 -> -0.6
I17: Net Futures | J17: =J16+J15 -> 0.8 | L17: Less Fees/Brokerage Cost | M17: =D28*-1 -> -0.05
C18: Future Outlook: | L18: Minimum Price Floor | M18: =M14+M15+M16+M17 -> 4.416
C19: Forward Contract Price | D19: ='Start Here'!D19 -> 5.3 | E19: =E20 -> 2024-05-31 | I19: Less Fees/Brokerage Cost | J19: =D34*-1 -> -0.02 | L19: Contract Call (Strike) Price | M19: =D26 -> 5.2
C20: Futures Price (at delivery) | D20: ='Start Here'!D20 -> 6 | E20: =D8 -> 2024-05-31 | I20: Less Initial Margin on Fut. & Interest | J20: =(((D33*D11)/365*A5)+D33)*-1 -> -0.217329863 | L20: Futures Price (at delivery) | M20: =D20 -> 6
C21: Basis (at delivery) | D21: =D22-D20 -> -0.3 | E21: (=D22-D20) | L21: Gain on Call (Strike Price - Futures Delivery) | M21: =MAX(0,M20-M19) -> 0.8
C22: Expected Cash Price (at delivery) | D22: 5.7 | I22: Net Cash | J22: =J14+J17+J19+J20 -> 5.562670137
C23: (adjusts with Futures & basis prices or enter your own value) | L23: Net Cash | M23: =M18+M21 -> 5.216 | O23: Considerations: When basis is expected to weaken and futures prices to go up, cash prices are also expected to rise. In this scenario, you want to lock in the favorable basis now, but hold off on locking in the futures prices. A number of pricing decision tools can help you to achieve this goal. In many cases, you can use a combination of tools. Especially if those tools secure an opportunity to capture additional value in case basis weakens or futures prices begin to decrease.
I24: 3. Sell Grain, Buy Call Option | L24: Note: Gain only seen when Futures is higher than strike price
C25: Minimum Price: | I25: Harvest (or Nearby) Cash Price | J25: =D15 -> 5
C26: Contract Call (Strike) Price | D26: 5.2
C27: Call Premium | D27: =D32 -> 0.6 | E27: (=D32) | I27: Buy Call Option:
C28: Fees/Brokerage Cost (Minimum Price) | D28: 0.05 | I28: Call Option Value (Fut. Del - Fut. Strike) | J28: =MAX(0,D20-D31) -> 0.8
I29: Call Option Premium | J29: =D32*-1 -> -0.6
C30: Options & Fees: | I30: Less Fees/Brokerage Cost | J30: =D35*-1 -> -0.03
C31: Futures (Call) Strike Price | D31: 5.2 | E31: =E20 -> 2024-05-31
C32: Call Option Premium | D32: 0.6
C33: Initial Margin on Futures Contract | D33: 0.21 | I33: Net Cash | J33: =J25+J28+J29+J30 -> 5.17
C34: Fees/Brokerage Cost (Futures Cont.) | D34: 0.02
C35: Fees/Brokerage Cost (Options) | D35: 0.03
C37: Note: All dollar values are per bushel.

Sheet Basis Strong Futures Up
C2: Marketing Plan Data Entry | G2: Pricing Tool Options | I2: 1. Store Grain Only | L2: 3. Store Grain, Buy Put Option
C3: Crop | D3: ='Start Here'!D3 -> Corn | G3: 1. Store Grain | I3: Expected Delivery Price | J3: =D22 -> 5.65 | L3: Expected Delivery Price | M3: =D22 -> 5.65
A4: Days in Marketing Plan | C4: Date of Plan | D4: ='Start Here'!D4 -> 12/01/2023 | G4: 2. Delayed Pricing | I4: Less Storage | J4: =ROUND(($D$11*$A$6/12*$D$15)+($D$9*$A$6),3)*-1 -> -0.234 | L4: Less Storage | M4: =ROUND(($D$11*$A$6/12*$D$15)+($D$9*$A$6),3)*-1 -> -0.234
A5: =IFERROR(D8-D7,0) -> 182 | B5: Days | G5: 3. Store Grain, Buy Put
A6: =A5/(365/12) -> 5.983561644 | B6: Months | C6: Plan Information: | G6: 4. Minimum Price Hedge-to-Arrive | L6: Put Option Value (Fut. Strike - Fut. Del) | M6: =MAX(0,D31-D20) -> 0
C7: Store from: | D7: ='Start Here'!D7 -> 2023-12-01 | L7: Put Option Premium | M7: =D32*-1 -> -0.2
C8: Store until (or Delay Price until): | D8: ='Start Here'!D8 -> 2024-05-31 | L8: Less Fees/Brokerage Cost | M8: =D33*-1 -> -0.02
C9: Storage cost per month (on farm) | D9: ='Start Here'!D9 -> 0.01 | L9: Net Options | M9: =M6+M7+M8 -> -0.22
C10: Storage cost per month (commercial) | D10: ='Start Here'!D10 -> 0.04
C11: Annual Interest Rate | D11: ='Start Here'!D11 -> 0.07 | I11: Net Cash | J11: =J3+J4 -> 5.416 | L11: Net Cash (Del. Price + Storage + Net Opt.) | M11: =M9+M3+M4 -> 5.196
D12: Note: Loan or investment opportunity
C13: Current Information: | I13: 2. Delayed Pricing | L13: 4. Min Price w/ Hedge-To-Arrive (Min/Max)
C14: Harvest (or Nearby) Futures | D14: ='Start Here'!D14 -> 5.2 | E14: =D7 -> 2023-12-01 | I14: Expected Delivery Price | J14: =D22 -> 5.65 | L14: Futures Price (at delivery) | M14: =D20 -> 5.8
C15: Harvest (or Nearby) Cash Price | D15: 5 | I15: Commercial Storage | J15: =ROUND(($D$11*$A$6/12*$J$3)+($D$10*$A$6),3)*-1 -> -0.437 | L15: Minimum Price | M15: =D26 -> 5
C16: Harvest (or Nearby) Basis | D16: =D15-D14 -> -0.2 | L16: Maximum Price | M16: =D27 -> 5.6
L17: Net of Min/Max | M17: =IF(M14<M15,M15,IF(M14>M16,M16,M14)) -> 5.6
C18: Future Outlook:
C19: Forward Contract Price | D19: ='Start Here'!D19 -> 5.3 | E19: =D8 -> 2024-05-31 | L19: Less Fees/Brokerage Cost | M19: =D28 -> 0.2
C20: Futures Price (at delivery) | D20: 5.8 | E20: =D8 -> 2024-05-31 | L20: Less Expected Basis (at delivery) | M20: =D21 -> -0.15
C21: Basis (at delivery) | D21: =D22-D20 -> -0.15 | E21: (=D22-D20) | I21: Net Cash | J21: =J14+J15 -> 5.213 | L21: Net Cash | M21: =M17-M19+M20 -> 5.25
C22: Expected Cash Price (at delivery) | D22: 5.65 | I22: Note: Grain has been delivered, risk transferred to grain elevator | L22: Note: Local grain elevators may vary in their use of Min/Max or Minimum Price/HTA Combos. Differences may include calculation of prices, use of Put Options, or limit gains to upward price movements only. | P22: Considerations: When basis is expected to strengthen and the futures prices to go up, cash prices are also expected to rise. In this situation, you do not want to lock in either the basis or the futures prices. Instead, use pricing tools that provide the potential to capture the best possible cash price for your grain. Consider risk tradeoffs between storing on-farm versus at commercial grain elevators.
C23: (adjusts with Futures & basis prices or enter your own value)
C25: Minimum Price:
C26: Minimum (Strike) Price | D26: 5 | L26: For example, some contracts will shift Min/Max into simple Hedge-To-Arrive (HTA) after a specified period and for an additional premium.
C27: Maximum (Strike) Price | D27: 5.6
C28: Fees/Brokerage Cost (Min Price & HTA) | D28: 0.2
C30: Options & Fees:
C31: Futures (Put) Strike Price | D31: 5.5 | E31: =E20 -> 2024-05-31
C32: Put Option Premium | D32: 0.2
C33: Fees/Brokerage Cost (Options) | D33: 0.02
C35: Note: All dollar values are per bushel.

Sheet Basis Strong Futures Down
C2: Marketing Plan Data Entry | G2: Pricing Tool Options | I2: 1. Hedge (Store Grain, Sell Futures) | L2: 3. Store Grain, Buy Put Option
C3: Crop | D3: ='Start Here'!D3 -> Corn | G3: 1. Hedge (Store Grain, Sell Futures) | I3: Expected Delivery Price | J3: =D22 -> 4.6 | L3: Put Option Value (Fut. Strike - Fut. Del) | M3: =MAX(0,D32-D20) -> 1.1
A4: Days in Marketing Plan | C4: Date of Plan | D4: ='Start Here'!D4 -> 12/01/2023 | G4: 2. Hedge-to-Arrive (HTA) | I4: Less Storage | J4: =ROUND(($D$11*$A$6/12*$D$15)+($D$9*$A$6),3)*-1 -> -0.245 | L4: Put Option Premium | M4: =D33*-1 -> -0.4
A5: =IFERROR(D8-D7,0) -> 182 | B5: Days | G5: 3. Store Grain, Buy Put | I5: Harvest (or Nearby) Futures | J5: =D14 -> 5.2 | L5: Less Fees/Brokerage Cost | M5: =D35*-1 -> -0.02
A6: =A5/(365/12) -> 5.983561644 | B6: Months | C6: Plan Information: | G6: 4. Minimum Price Hedge-to-Arrive | I6: Futures Price (at delivery) | J6: =D20*-1 -> -4.4 | L6: Net Options | M6: =M3+M4+M5 -> 0.68
C7: Store from: | D7: ='Start Here'!D7 -> 2023-12-01 | I7: Net Futures | J7: =J5+J6 -> 0.8
C8: Store until (or Delay Price until): | D8: ='Start Here'!D8 -> 2024-05-31 | L8: Expected Delivery Price | M8: =D22 -> 4.6
C9: Storage cost per month (on farm) | D9: ='Start Here'!D9 -> 0.01 | I9: Less Fees/Brokerage Cost | J9: =D35*-1 -> -0.02 | L9: Less Storage | M9: =ROUND(($D$11*$A$6/12*$D$15)+($D$9*$A$6),3)*-1 -> -0.245
C10: Storage cost per month (commercial) | D10: ='Start Here'!D10 -> 0.04 | I10: Less Initial Margin on Fut. & Interest | J10: =(((D34*D11)/365*A5)+D34)*-1 -> -0.217329863
C11: Annual Interest Rate | D11: ='Start Here'!D11 -> 0.07 | I11: Net Cash | J11: =J3+J4+J7+J9+J10 -> 4.917670137 | L11: Net Cash (Net Opt. + Del. Price + Storage) | M11: =M6+M8+M9 -> 5.035
D12: Note: Loan or investment opportunity
C13: Current Information: | I13: 2. Hedge-To-Arrive (HTA) | L13: 4. Min Price w/ Hedge-To-Arrive (Min/Max)
C14: Harvest (or Nearby) Futures | D14: ='Start Here'!D14 -> 5.2 | E14: =D7 -> 2023-12-01 | I14: Nearby or Harvest Futures Price | J14: =D14 -> 5.2 | L14: Futures Price (at delivery) | M14: =D20 -> 4.4
C15: Harvest (or Nearby) Cash Price | D15: ='Start Here'!D15 -> 5.3 | I15: Expected Basis at Delivery | J15: =D21 -> 0.2 | L15: Minimum Price | M15: =D26 -> 5
C16: Harvest (or Nearby) Basis | D16: =D15-D14 -> 0.1 | I16: Net Hedge-to-Arrive Price | J16: =J14+J15 -> 5.4 | L16: Maximum Price | M16: =D27 -> 5.6
L17: Net of Min/Max | M17: =IF(M14<M15,M15,IF(M14>M16,M16,M14)) -> 5
C18: Future Outlook: | I18: Less Storage | J18: =ROUND(($D$11*$A$6/12*$D$15)+($D$9*$A$6),3)*-1 -> -0.245
C19: Forward Contract Price | D19: ='Start Here'!D19 -> 5.3 | E19: =D8 -> 2024-05-31 | I19: Less Fees/Brokerage Cost | J19: =D29*-1 -> -0.03 | L19: Less Fees/Brokerage Cost | M19: =D28 -> 0.2
C20: Futures Price (at delivery) | D20: 4.4 | E20: =D8 -> 2024-05-31 | L20: Less Expected Basis (at delivery) | M20: =D21 -> 0.2
C21: Basis (at delivery) | D21: =D22-D20 -> 0.2 | E21: (=D22-D20) | I21: Net Cash | J21: =J16+J18+J19 -> 5.125 | L21: Net Cash | M21: =M17-M19+M20 -> 5
C22: Expected Cash Price (at delivery) | D22: 4.6 | L22: Note: Local grain elevators may vary in their use of Min/Max or Minimum Price/HTA Combos. Differences may include calculation of prices, use of Put Options, or limit gains to upward price movements only. | O22: Considerations: When basis is expected to strengthen and the futures prices to go down, expect the cash price to trend downward. In this scenario, you only want to lock in the futures price now. The basis should be left to lock in later, because the expectation is that it will be better later on. With this change in expectations, the pricing decision tools you want to use also change compared to other scenarios. Consider pricing tools that secure positive futures, but provide an opportunity to capture additional value in case basis weakens.
C23: (adjusts with Futures & basis prices or enter your own value)
C25: Minimum Price & Hedge-to-Arrive (HTA):
C26: Minimum (Strike) Price | D26: 5 | L26: For example, some contracts will shift Min/Max into simple Hedge-To-Arrive (HTA) after a specified period and for an additional premium.
C27: Maximum (Strike) Price | D27: 5.6
C28: Fees/Brokerage Cost (Min Price & HTA) | D28: 0.2
C29: Fees/Brokerage Cost (HTA Only) | D29: 0.03
C31: Options & Fees:
C32: Futures (Put) Strike Price | D32: 5.5 | E32: =E20 -> 2024-05-31
C33: Put Option Premium | D33: 0.4
C34: Initial Margin on Futures Contract | D34: 0.21
C35: Fees/Brokerage Cost (Futures Cont.) | D35: 0.02
C37: Note: All dollar values are per bushel.

Sheet Basis Weak Futures Down
C2: Marketing Plan Data Entry | G2: Pricing Tool Options | I2: 1. Sell Cash | L2: 4. Forward Contract, Buy Call Option
C3: Crop | D3: ='Start Here'!D3 -> Corn | G3: 1. Sell Cash | I3: Harvest (or Nearby) Cash Price | J3: =D15 -> 5.3 | L3: Forward Contract Price | M3: =D19 -> 4.75
A4: Days in Marketing Plan | C4: Date of Plan | D4: ='Start Here'!D4 -> 12/01/2023 | G4: 2. Forward Contract | L4: Less Storage | M4: =ROUND(($D$11*$A$6/12*$D$15)+($D$9*$A$6),3)*-1 -> -0.245
A5: =IFERROR(D8-D7,0) -> 182 | B5: Days | G5: 3. Sell, Cash, Buy Call
A6: =A5/(365/12) -> 5.983561644 | B6: Months | C6: Plan Information: | G6: 4. Forward Contract, Buy Call | L6: Buy Call Option:
C7: Store from: | D7: ='Start Here'!D7 -> 2023-12-01 | G7: 5. Minimum Price Contract | L7: Call Option Value (Fut. Del - Fut. Strike) | M7: =MAX(0,D20-D31) -> 0
C8: Store until: | D8: ='Start Here'!D8 -> 2024-05-31 | L8: Call Option Premium | M8: =D32*-1 -> -0.1
C9: Storage cost per month (on farm) | D9: 0.01 | L9: Less Fees/Brokerage Cost | M9: =D33*-1 -> -0.02
C10: Storage cost per month (commercial) | D10: ='Start Here'!D10 -> 0.04
C11: Annual Interest Rate | D11: 0.07 | I11: Net Cash | J11: =J3 -> 5.3 | L11: Net Cash | M11: =M3+M4+M7+M8+M9 -> 4.385
D12: Note: Loan or investment opportunity
C13: Current Information: | I13: 2. Forward Contract | L13: 5. Minimum Price Contract
C14: Harvest (or Nearby) Futures | D14: ='Start Here'!D14 -> 5.2 | E14: =D7 -> 2023-12-01 | I14: Forward Contract Price | J14: =D19 -> 4.75 | L14: Forward Contract Price | M14: =D19 -> 4.75
C15: Harvest (or Nearby) Cash Price | D15: ='Start Here'!D15 -> 5.3 | I15: Less Storage | J15: =ROUND(($D$11*$A$6/12*$D$15)+($D$9*$A$6),3)*-1 -> -0.245 | L15: Less Storage | M15: =ROUND(($D$11*$A$6/12*$D$15)+($D$9*$A$6),3)*-1 -> -0.245
C16: Harvest (or Nearby) Basis | D16: =D15-D14 -> 0.1 | L16: Call Premium | M16: =D27*-1 -> -0.1
L17: Less Fees/Brokerage Cost | M17: =D28*-1 -> -0.05
C18: Future Outlook: | L18: Minimum Price Floor | M18: =M14+M15+M16+M17 -> 4.355
C19: Forward Contract Price | D19: 4.75 | E19: =E20 -> 2024-05-31
C20: Futures Price (at delivery) | D20: 5.1 | E20: =D8 -> 2024-05-31 | L20: Contract Call (Strike) Price | M20: =D26 -> 5.2
C21: Basis (at delivery) | D21: =D22-D20 -> -0.6 | E21: (=D22-D20) | L21: Futures Price (at delivery) | M21: =D20 -> 5.1
C22: Expected Cash Price (at delivery) | D22: 4.5 | I22: Net Cash | J22: =J14+J15 -> 4.505 | L22: Gain on Call (Strike Price - Futures Delivery) | M22: =MAX(0,M21-M20) -> 0 | O22: Considerations: When basis is expected to weaken and the futures prices to go down, expect the cash price to trend downward as well. This trend indicates you want to lock in both the basis and the futures price now. However, you may also want to secure an opportunity to capture additional value in case basis strengthens or futures prices begin to increase. You can take a number of actions, using a variety of pricing decision tools.
C23: (adjusts with Futures & basis prices or enter your own value)
I24: 3. Sell Grain, Buy Call Option | L24: Net Cash | M24: =M18+M22 -> 4.355
C25: Minimum Price: | I25: Harvest (or Nearby) Cash Price | J25: =D15 -> 5.3 | L25: Note: Gain only seen when Futures is higher than strike price
C26: Contract Call (Strike) Price | D26: =D31 -> 5.2
C27: Call Premium | D27: =D32 -> 0.1 | E27: (=D32) | I27: Buy Call Option:
C28: Fees/Brokerage Cost (Minimum Price) | D28: 0.05 | I28: Call Option Value (Fut. Del - Fut. Strike) | J28: =MAX(0,D20-D31) -> 0
I29: Call Option Premium | J29: =D32*-1 -> -0.1
C30: Options & Fees: | I30: Less Fees/Brokerage Cost | J30: =D33*-1 -> -0.02
C31: Futures (Call) Strike Price | D31: 5.2 | E31: =E20 -> 2024-05-31
C32: Call Option Premium | D32: 0.1
C33: Fees/Brokerage Cost (Options) | D33: 0.02 | I33: Net Cash | J33: =J25+J28+J29+J30 -> 5.18
C35: Note: All dollar values are per bushel.
